[Event "9th Bangabandhu Rapid Men 2021"]
[Site "Dhaka"]
[Date "2021.04.02"]
[Round "3.1"]
[White "Mohammad Fahad, Rahman"]
[Black "Rahman, Ziaur"]
[Result "1-0"]
[ECO "B57"]
[WhiteElo "2307"]
[BlackElo "2419"]
[Annotator "ChessBase"]
[PlyCount "101"]
[EventDate "2021.04.02"]
[EventType "swiss"]
[EventCountry "BAN"]
[SourceTitle "playchess.com"]
[Source "ChessBase"]
[SourceQuality "1"]
[TimeControl "1500+10"]

1. e4 {[%emt 0:00:00]} c5 {[%emt 0:00:12]} 2. Nf3 {[%emt 0:00:11]} d6 {[%emt 0:00:08]} 3. d4 {[%emt 0:00:02]} cxd4 {[%emt 0:00:01]} 4. Nxd4 {[%emt 0:00:03]} Nf6 {[%emt 0:00:02]} 5. Nc3 {[%emt 0:00:03]} Nc6 {[%emt 0:00:04]} 6. Bc4 {[%emt 0:00:47]} Qb6 {[%emt 0:00:47]} 7. Nde2 {[%emt 0:00:03]} e6 {[%emt 0:00:15]} 8. O-O {[%emt 0:00:05]} a6 {[%emt 0:00:15]} 9. Be3 {[%emt 0:01:17]} Qc7 {[%emt 0:00:08]} 10. Ng3 {[%emt 0:00:05]} Be7 {[%emt 0:00:12]} 11. a4 {[%emt 0:00:56]} O-O {[%emt 0:24:46]} 12. f4 {[%emt 0:00:22]} Na5 {[%emt 0:00:00]} 13. Bd3 {[%emt 0:01:02]} Nc4 {[%emt 0:00:00]} 14. Bxc4 {[%emt 0:00:39]} Qxc4 {[%emt 0:00:00]} 15. Kh1 {[%emt 0:00:34]} Rd8 {[%emt 0:00:00]} 16. Bb6 {[%emt 0:00:19]} Re8 {[%emt 0:00:50]} 17. a5 {[%emt 0:03:01]} e5 {[%emt 0:00:00]} 18. Ra4 {[%emt 0:03:06]} Qc6 {[%emt 0:00:00]} 19. Qd3 {[%emt 0:00:07]} exf4 {[%emt 0:00:00]} 20. Rc4 {[%emt 0:00:24]} Qxc4 {[%emt 0:00:00]} 21. Qxc4 {[%emt 0:00:03]} fxg3 {[%emt 0:00:00]} 22. h3 {[%emt 0:01:22]} Bd7 {[%emt 0:00:00]} 23. Qd3 {[%emt 0:00:46]} Bc6 {[%emt 0:00:00]} 24. Bd4 {[%emt 0:01:32]} Nd7 {[%emt 0:00:00]} 25. Qxg3 {[%emt 0:00:39]} Bf8 {[%emt 0:00:00]} 26. Rf4 {[%emt 0:02:06]} Ne5 {[%emt 0:01:40]} 27. Rf5 {[%emt 0:01:11]} Ng6 {[%emt 0:00:00]} 28. Qf2 {[%emt 0:02:17]} f6 {[%emt 0:00:00]} 29. Qe2 {[%emt 0:00:23]} Ne5 {[%emt 0:00:00]} 30. Nd5 {[%emt 0:00:49]} Bxd5 {[%emt 0:00:00]} 31. exd5 {[%emt 0:00:11]} Nc6 {[%emt 0:00:00]} 32. Qg4 {[%emt 0:01:03]} Nxd4 {[%emt 0:00:00]} 33. Qxd4 {[%emt 0:00:02]} Re1+ {[%emt 0:00:00]} 34. Kh2 {[%emt 0:00:02]} Rae8 {[%emt 0:00:00]} 35. Rf2 {[%emt 0:01:11]} h5 {[%emt 0:00:00]} 36. Qb6 {[%emt 0:00:31]} R8e7 {[%emt 0:00:00]} 37. Rf5 {[%emt 0:01:02]} R7e2 {[%emt 0:00:00]} 38. Rf2 {[%emt 0:00:33]} Re7 {[%emt 0:00:00]} 39. Rf3 {[%emt 0:00:02]} Rc1 {[%emt 0:00:00]} 40. Re3 {[%emt 0:00:38]} Rf7 {[%emt 0:00:00]} 41. Re8 {[%emt 0:00:32]} g5 {[%emt 0:00:00]} 42. Qxd6 {[%emt 0:00:54]} Rxc2 {[%emt 0:00:00]} 43. Qe6 {[%emt 0:00:03]} Kg7 {[%emt 0:00:00]} 44. d6 {[%emt 0:00:28]} Rd2 {[%emt 0:00:00]} 45. Re7 {[%emt 0:00:12]} Bxe7 {[%emt 0:00:00]} 46. dxe7 {[%emt 0:00:04]} Rxe7 {[%emt 0:00:00]} 47. Qxe7+ {[%emt 0:00:02]} Kg6 {[%emt 0:00:00]} 48. Qe4+ {[%emt 0:00:05]} Kh6 {[%emt 0:00:01]} 49. Qxb7 {[%emt 0:00:08]} Kg6 {[%emt 0:00:09]} 50. Qxa6 {[%emt 0:00:07]} Rxb2 {[%emt 0:00:02]} 51. Qd3+ {[%emt 0:00:02]} 1-0

[Event "9th Bangabandhu Rapid Men 2021"]
[Site "Dhaka"]
[Date "2021.04.02"]
[Round "3.2"]
[White "Hossain, Enamul"]
[Black "Zia, Tahsin Tajwar"]
[Result "1-0"]
[ECO "E08"]
[WhiteElo "2426"]
[BlackElo "2092"]
[Annotator "ChessBase"]
[PlyCount "75"]
[EventDate "2021.04.02"]
[EventType "swiss"]
[EventCountry "BAN"]
[SourceTitle "playchess.com"]
[Source "ChessBase"]
[SourceQuality "1"]
[TimeControl "1500+10"]

1. d4 {[%emt 0:00:00]} d5 {[%emt 0:00:11]} 2. Nf3 {[%emt 0:00:01]} Nf6 {[%emt 0:00:10]} 3. c4 {[%emt 0:00:02]} e6 {[%emt 0:00:05]} 4. g3 {[%emt 0:01:11]} Bb4+ {[%emt 0:00:02]} 5. Bd2 {[%emt 0:00:02]} Be7 {[%emt 0:00:05]} 6. Bg2 {[%emt 0:00:04]} O-O {[%emt 0:00:03]} 7. O-O {[%emt 0:00:10]} c6 {[%emt 0:00:04]} 8. Qc2 {[%emt 0:00:12]} Ne4 {[%emt 0:00:03]} 9. Bf4 {[%emt 0:00:52]} Nd7 {[%emt 0:00:15]} 10. Nc3 {[%emt 0:00:22]} g5 {[%emt 0:00:08]} 11. Be3 {[%emt 0:03:14]} Nd6 {[%emt 0:00:03]} 12. cxd5 {[%emt 0:00:18]} cxd5 {[%emt 0:00:16]} 13. Rad1 {[%emt 0:00:07]} b5 {[%emt 0:00:42]} 14. Ne5 {[%emt 0:01:41]} Bb7 {[%emt 0:00:48]} 15. f4 {[%emt 0:00:49]} b4 {[%emt 0:04:10]} 16. Na4 {[%emt 0:00:27]} Rc8 {[%emt 0:02:19]} 17. Qd3 {[%emt 0:01:15]} Nxe5 {[%emt 0:02:43]} 18. fxe5 {[%emt 0:01:25]} Ne4 {[%emt 0:00:10]} 19. b3 {[%emt 0:03:01]} Qa5 {[%emt 0:00:32]} 20. Bxe4 {[%emt 0:03:27]} dxe4 {[%emt 0:00:02]} 21. Qd2 {[%emt 0:00:01]} h6 {[%emt 0:01:20]} 22. h4 {[%emt 0:00:02]} Qd5 {[%emt 0:00:03]} 23. hxg5 {[%emt 0:02:24]} Bxg5 {[%emt 0:00:35]} 24. Nc5 {[%emt 0:00:26]} Ba8 {[%emt 0:04:41]} 25. Qc1 {[%emt 0:00:07]} Rxc5 {[%emt 0:05:00]} 26. dxc5 {[%emt 0:00:10]} Qxe5 {[%emt 0:00:01]} 27. Bf4 {[%emt 0:01:13]} Bxf4 {[%emt 0:00:43]} 28. Qxf4 {[%emt 0:00:02]} Qxc5+ {[%emt 0:00:06]} 29. e3 {[%emt 0:00:01]} Qh5 {[%emt 0:01:38]} 30. Rd7 {[%emt 0:01:15]} Bc6 {[%emt 0:01:12]} 31. Rxa7 {[%emt 0:01:23]} Bb5 {[%emt 0:00:01]} 32. Rf2 {[%emt 0:00:49]} Bd3 {[%emt 0:01:31]} 33. g4 {[%emt 0:00:34]} Qg6 {[%emt 0:00:32]} 34. Rh2 {[%emt 0:00:50]} Rc8 {[%emt 0:00:08]} 35. Rxh6 {[%emt 0:00:24]} Qg7 {[%emt 0:00:14]} 36. Kh2 {[%emt 0:00:48]} Rc2+ {[%emt 0:00:11]} 37. Kg3 {[%emt 0:00:09]} e5 {[%emt 0:00:07]} 38. Ra8+ {[%emt 0:00:03]} 1-0

[Event "9th Bangabandhu Rapid Men 2021"]
[Site "Dhaka"]
[Date "2021.04.02"]
[Round "3.3"]
[White "Mohammad Minhaz Uddin"]
[Black "Manon, Reja Neer"]
[Result "1/2-1/2"]
[ECO "B80"]
[WhiteElo "2295"]
[BlackElo "2143"]
[Annotator "ChessBase"]
[PlyCount "54"]
[EventDate "2021.04.02"]
[EventType "swiss"]
[EventCountry "BAN"]
[SourceTitle "playchess.com"]
[Source "ChessBase"]
[SourceQuality "1"]
[TimeControl "1500+10"]

1. e4 {[%emt 0:25:10]} c5 {[%emt 0:00:24]} 2. Nf3 {[%emt 0:00:00]} d6 {[%emt 0:00:03]} 3. d4 {[%emt 0:00:00]} cxd4 {[%emt 0:00:02]} 4. Nxd4 {[%emt 0:00:00]} Nf6 {[%emt 0:00:02]} 5. Nc3 {[%emt 0:00:40]} a6 {[%emt 0:00:20]} 6. g3 {[%emt 0:00:10]} e6 {[%emt 0:00:24]} 7. Bg2 {[%emt 0:00:00]} Be7 {[%emt 0:00:01]} 8. O-O {[%emt 0:00:00]} O-O {[%emt 0:25:04]} 9. g4 {[%emt 0:00:00]} Nc6 {[%emt 0:00:00]} 10. h3 {[%emt 0:00:40]} Nd7 {[%emt 0:00:00]} 11. Be3 {[%emt 0:00:10]} Qc7 {[%emt 0:00:00]} 12. Qd2 {[%emt 0:00:00]} Nde5 {[%emt 0:00:00]} 13. b3 {[%emt 0:00:00]} Nxd4 {[%emt 0:00:00]} 14. Bxd4 {[%emt 0:00:30]} Nc6 {[%emt 0:00:00]} 15. Be3 {[%emt 0:00:10]} b5 {[%emt 0:01:10]} 16. a4 {[%emt 0:00:10]} b4 {[%emt 0:00:00]} 17. Ne2 {[%emt 0:00:10]} Bb7 {[%emt 0:00:00]} 18. f4 {[%emt 0:00:10]} Rad8 {[%emt 0:00:30]} 19. Nd4 {[%emt 0:00:10]} Nxd4 {[%emt 0:00:10]} 20. Bxd4 {[%emt 0:00:00]} e5 {[%emt 0:00:00]} 21. Bb2 {[%emt 0:00:00]} exf4 {[%emt 0:00:00]} 22. Rxf4 {[%emt 0:00:30]} Bg5 {[%emt 0:00:00]} 23. Qd4 {[%emt 0:00:00]} Qc5 {[%emt 0:00:00]} 24. Rf2 {[%emt 0:00:20]} f6 {[%emt 0:00:50]} 25. Re2 {[%emt 0:00:10]} a5 {[%emt 0:00:10]} 26. c4 {[%emt 0:00:10]} Rfe8 {[%emt 0:00:00]} 27. Rd1 {[%emt 0:00:10]} Bf4 {[%emt 0:00:20]} 1/2-1/2

[Event "9th Bangabandhu Rapid Men 2021"]
[Site "Dhaka"]
[Date "2021.04.02"]
[Round "3.4"]
[White "Uddin, Md. Saif"]
[Black "Islam, Khandaker Aminul"]
[Result "0-1"]
[ECO "A04"]
[WhiteElo "1855"]
[BlackElo "2174"]
[Annotator "ChessBase"]
[PlyCount "89"]
[EventDate "2021.04.02"]
[EventType "swiss"]
[EventCountry "BAN"]
[SourceTitle "playchess.com"]
[Source "ChessBase"]
[SourceQuality "1"]
[TimeControl "1500+10"]

1. Nf3 {[%emt 0:00:00]} g6 {[%emt 0:00:00]} 2. b4 {[%emt 0:00:00]} Bg7 {[%emt 0:00:00]} 3. d4 {[%emt 0:00:04]} d5 {[%emt 0:00:17]} 4. e3 {[%emt 0:00:15]} Bg4 {[%emt 0:00:39]} 5. c4 {[%emt 0:00:10]} c6 {[%emt 0:00:04]} 6. Bb2 {[%emt 0:00:29]} Nd7 {[%emt 0:00:15]} 7. Nbd2 {[%emt 0:01:30]} Ngf6 {[%emt 0:01:15]} 8. Qb3 {[%emt 0:00:07]} O-O {[%emt 0:00:26]} 9. Bd3 {[%emt 0:01:17]} dxc4 {[%emt 0:02:00]} 10. Nxc4 {[%emt 0:01:59]} Bxf3 {[%emt 0:00:07]} 11. gxf3 {[%emt 0:00:02]} Nb6 {[%emt 0:01:41]} 12. Na5 {[%emt 0:01:50]} Rb8 {[%emt 0:00:14]} 13. e4 {[%emt 0:01:56]} Nh5 {[%emt 0:00:13]} 14. Rd1 {[%emt 0:01:17]} Nf4 {[%emt 0:05:18]} 15. Bf1 {[%emt 0:00:11]} Qd6 {[%emt 0:01:18]} 16. a3 {[%emt 0:04:13]} Rfd8 {[%emt 0:00:25]} 17. Nc4 {[%emt 0:02:46]} Nxc4 {[%emt 0:00:30]} 18. Bxc4 {[%emt 0:00:07]} e6 {[%emt 0:00:57]} 19. h4 {[%emt 0:03:19]} Qe7 {[%emt 0:00:06]} 20. Kf1 {[%emt 0:00:28]} Rd7 {[%emt 0:00:47]} 21. Bc1 {[%emt 0:00:20]} Nh5 {[%emt 0:00:02]} 22. Bg5 {[%emt 0:01:02]} Bf6 {[%emt 0:00:01]} 23. Qe3 {[%emt 0:00:59]} Rbd8 {[%emt 0:01:11]} 24. Kg2 {[%emt 0:00:53]} Bxg5 {[%emt 0:00:27]} 25. hxg5 {[%emt 0:00:19]} e5 {[%emt 0:00:07]} 26. Rxh5 {[%emt 0:00:29]} gxh5 {[%emt 0:00:01]} 27. d5 {[%emt 0:00:04]} Kh8 {[%emt 0:00:18]} 28. Rh1 {[%emt 0:00:59]} Rg8 {[%emt 0:00:01]} 29. Rxh5 {[%emt 0:00:02]} Rd6 {[%emt 0:01:03]} 30. Kf1 {[%emt 0:00:42]} b5 {[%emt 0:01:32]} 31. Bb3 {[%emt 0:00:14]} Rdg6 {[%emt 0:00:58]} 32. f4 {[%emt 0:00:38]} cxd5 {[%emt 0:00:43]} 33. exd5 {[%emt 0:00:14]} f6 {[%emt 0:01:19]} 34. gxf6 {[%emt 0:00:40]} Qxf6 {[%emt 0:00:22]} 35. Qxe5 {[%emt 0:00:21]} Rc8 {[%emt 0:03:14]} 36. d6 {[%emt 0:00:35]} Qg7 {[%emt 0:01:38]} 37. d7 {[%emt 0:00:21]} Rd8 {[%emt 0:00:06]} 38. Qxg7+ {[%emt 0:00:14]} Kxg7 {[%emt 0:00:15]} 39. f5 {[%emt 0:00:10]} Rd6 {[%emt 0:00:17]} 40. Be6 {[%emt 0:00:02]} Rd3 {[%emt 0:00:10]} 41. Rg5+ {[%emt 0:00:16]} Kf6 {[%emt 0:00:05]} 42. Rg3 {[%emt 0:00:11]} Rd4 {[%emt 0:00:34]} 43. Ke2 {[%emt 0:00:12]} h5 {[%emt 0:00:12]} 44. Ke3 {[%emt 0:00:10]} Ke5 {[%emt 0:01:12]} 45. Rg2 {[%emt 0:00:23]} 0-1

[Event "9th Bangabandhu Rapid Men 2021"]
[Site "Dhaka"]
[Date "2021.04.02"]
[Round "3.5"]
[White "Rafi, Islam"]
[Black "Mollah Abdullah, Al Rakib"]
[Result "0-1"]
[ECO "A47"]
[WhiteElo "1788"]
[BlackElo "2463"]
[Annotator "ChessBase"]
[PlyCount "100"]
[EventDate "2021.04.02"]
[EventType "swiss"]
[EventCountry "BAN"]
[SourceTitle "playchess.com"]
[Source "ChessBase"]
[SourceQuality "1"]
[TimeControl "1500+10"]

1. d4 {[%emt 0:00:00]} Nf6 {[%emt 0:00:04]} 2. Nf3 {[%emt 0:00:00]} b6 {[%emt 0:00:19]} 3. Bf4 {[%emt 0:00:00]} Bb7 {[%emt 0:00:10]} 4. e3 {[%emt 0:00:00]} g6 {[%emt 0:00:00]} 5. h3 {[%emt 0:00:00]} Bg7 {[%emt 0:00:20]} 6. Bd3 {[%emt 0:00:00]} d6 {[%emt 0:00:00]} 7. Nbd2 {[%emt 0:00:00]} Nbd7 {[%emt 0:00:00]} 8. Bh2 {[%emt 0:00:00]} O-O {[%emt 0:00:00]} 9. O-O {[%emt 0:00:00]} e6 {[%emt 0:00:00]} 10. e4 {[%emt 0:00:10]} Qe7 {[%emt 0:00:00]} 11. Re1 {[%emt 0:00:20]} e5 {[%emt 0:00:00]} 12. c3 {[%emt 0:00:00]} Nh5 {[%emt 0:00:00]} 13. Rc1 {[%emt 0:00:00]} Rad8 {[%emt 0:00:00]} 14. Qc2 {[%emt 0:00:00]} Rfe8 {[%emt 0:00:00]} 15. b4 {[%emt 0:00:00]} Bh6 {[%emt 0:00:10]} 16. Ra1 {[%emt 0:00:00]} Bf4 {[%emt 0:00:00]} 17. Bxf4 {[%emt 0:00:00]} Nxf4 {[%emt 0:00:10]} 18. Bf1 {[%emt 0:00:00]} a6 {[%emt 0:00:00]} 19. g3 {[%emt 0:00:10]} Ne6 {[%emt 0:00:00]} 20. d5 {[%emt 0:00:00]} Ng7 {[%emt 0:00:00]} 21. c4 {[%emt 0:00:00]} f5 {[%emt 0:00:00]} 22. h4 {[%emt 0:00:00]} Rf8 {[%emt 0:00:00]} 23. Bg2 {[%emt 0:00:00]} f4 {[%emt 0:00:00]} 24. g4 {[%emt 0:00:00]} Nf6 {[%emt 0:00:10]} 25. g5 {[%emt 0:01:10]} Nd7 {[%emt 0:00:00]} 26. Bh3 {[%emt 0:00:00]} c6 {[%emt 0:00:00]} 27. a4 {[%emt 0:00:00]} Nb8 {[%emt 0:00:00]} 28. Qd3 {[%emt 0:00:00]} Bc8 {[%emt 0:00:00]} 29. Qf1 {[%emt 0:00:20]} Qb7 {[%emt 0:01:00]} 30. Reb1 {[%emt 0:00:10]} Rf7 {[%emt 0:01:10]} 31. Ra3 {[%emt 0:00:20]} Rc7 {[%emt 0:00:00]} 32. Raa1 {[%emt 0:00:00]} Bxh3 {[%emt 0:00:00]} 33. Qxh3 {[%emt 0:00:00]} b5 {[%emt 0:00:00]} 34. axb5 {[%emt 0:00:00]} axb5 {[%emt 0:00:00]} 35. Nb3 {[%emt 0:00:19]} bxc4 {[%emt 0:00:00]} 36. Na5 {[%emt 0:00:51]} Qb5 {[%emt 0:00:00]} 37. dxc6 {[%emt 0:00:14]} Nxc6 {[%emt 0:00:40]} 38. Nxc6 {[%emt 0:00:13]} Qxc6 {[%emt 0:00:00]} 39. b5 {[%emt 0:00:20]} Qxe4 {[%emt 0:00:00]} 40. b6 {[%emt 0:00:03]} Rb7 {[%emt 0:00:00]} 41. Nd2 {[%emt 0:00:10]} Qd4 {[%emt 0:01:20]} 42. Nf3 {[%emt 0:00:17]} Qc5 {[%emt 0:01:30]} 43. Ra6 {[%emt 0:00:27]} Nf5 {[%emt 0:00:00]} 44. Qg2 {[%emt 0:00:00]} e4 {[%emt 0:00:00]} 45. Nd2 {[%emt 0:00:00]} d5 {[%emt 0:00:00]} 46. Nxe4 {[%emt 0:00:01]} dxe4 {[%emt 0:00:04]} 47. Qxe4 {[%emt 0:00:05]} Qd5 {[%emt 0:00:22]} 48. Qc2 {[%emt 0:00:21]} Nd4 {[%emt 0:00:04]} 49. Qa4 {[%emt 0:00:20]} Nf3+ {[%emt 0:00:07]} 50. Kf1 {[%emt 0:00:09]} Nd2+ {[%emt 0:00:03]} 0-1

[Event "9th Bangabandhu Rapid Men 2021"]
[Site "Dhaka"]
[Date "2021.04.02"]
[Round "3.6"]
[White "Subrota, Biswas"]
[Black "Reefat, Bin-Sattar"]
[Result "1-0"]
[ECO "D24"]
[WhiteElo "2262"]
[BlackElo "2409"]
[Annotator "ChessBase"]
[PlyCount "57"]
[EventDate "2021.04.02"]
[EventType "swiss"]
[EventCountry "BAN"]
[SourceTitle "playchess.com"]
[Source "ChessBase"]
[SourceQuality "1"]
[TimeControl "1500+10"]

1. d4 {[%emt 0:25:10]} d5 {[%emt 0:25:10]} 2. c4 {[%emt 0:00:10]} dxc4 {[%emt 0:00:10]} 3. Nf3 {[%emt 0:00:10]} a6 {[%emt 0:00:10]} 4. e4 {[%emt 0:00:00]} Nf6 {[%emt 0:00:00]} 5. Nc3 {[%emt 0:00:00]} b5 {[%emt 0:00:00]} 6. e5 {[%emt 0:00:00]} Nd5 {[%emt 0:00:00]} 7. a4 {[%emt 0:00:00]} Bb7 {[%emt 0:00:00]} 8. e6 {[%emt 0:00:00]} fxe6 {[%emt 0:00:00]} 9. Ne4 {[%emt 0:00:00]} Nf6 {[%emt 0:00:00]} 10. Nc5 {[%emt 0:00:00]} Qc8 {[%emt 0:00:00]} 11. Be2 {[%emt 0:00:00]} Bd5 {[%emt 0:00:00]} 12. axb5 {[%emt 0:00:00]} axb5 {[%emt 0:00:00]} 13. Rxa8 Bxa8 {[%emt 0:00:00]} 14. Ng5 {[%emt 0:00:00]} Bd5 {[%emt 0:00:00]} 15. Bg4 {[%emt 0:00:00]} Nxg4 {[%emt 0:00:00]} 16. Qxg4 {[%emt 0:00:00]} Nd7 {[%emt 0:00:00]} 17. Ncxe6 {[%emt 0:00:00]} Nf6 {[%emt 0:00:00]} 18. Nxg7+ {[%emt 0:02:30]} Kd8 19. N7e6+ {[%emt 0:00:00]} Ke8 {[%emt 0:00:00]} 20. Ng7+ {[%emt 0:00:00]} Kd8 {[%emt 0:00:00]} 21. N5e6+ {[%emt 0:00:00]} Bxe6 {[%emt 0:00:00]} 22. Nxe6+ {[%emt 0:00:00]} Ke8 {[%emt 0:00:00]} 23. Qf5 {[%emt 0:00:00]} Rg8 {[%emt 0:00:00]} 24. O-O {[%emt 0:00:00]} c6 {[%emt 0:00:00]} 25. Bf4 {[%emt 0:00:00]} Qd7 {[%emt 0:00:00]} 26. Re1 {[%emt 0:00:00]} Kf7 {[%emt 0:00:23]} 27. Ng5+ {[%emt 0:00:00]} Kg7 {[%emt 0:00:09]} 28. Re6 {[%emt 0:00:07]} Qxd4 {[%emt 0:01:11]} 29. Rxe7+ {[%emt 0:00:04]} 1-0

[Event "9th Bangabandhu Rapid Men 2021"]
[Site "Dhaka"]
[Date "2021.04.02"]
[Round "3.7"]
[White "Rahman, Taibur"]
[Black "Md., Hadiuzzaman"]
[Result "1-0"]
[ECO "D43"]
[WhiteElo "2215"]
[BlackElo "2034"]
[Annotator "ChessBase"]
[PlyCount "59"]
[EventDate "2021.04.02"]
[EventType "swiss"]
[EventCountry "BAN"]
[SourceTitle "playchess.com"]
[Source "ChessBase"]
[SourceQuality "1"]
[TimeControl "1500+10"]

1. d4 {[%emt 0:00:00]} d5 {[%emt 0:00:00]} 2. c4 {[%emt 0:00:00]} c6 {[%emt 0:00:00]} 3. Nf3 {[%emt 0:00:00]} Nf6 {[%emt 0:25:30]} 4. Nc3 e6 {[%emt 0:00:00]} 5. Bg5 {[%emt 0:00:00]} Bb4 {[%emt 0:00:00]} 6. e3 {[%emt 0:00:25]} Qa5 {[%emt 0:00:00]} 7. Bxf6 {[%emt 0:01:22]} Bxc3+ {[%emt 0:00:00]} 8. bxc3 {[%emt 0:00:02]} Qxc3+ {[%emt 0:00:00]} 9. Nd2 {[%emt 0:00:02]} gxf6 {[%emt 0:00:00]} 10. cxd5 {[%emt 0:00:02]} exd5 {[%emt 0:00:00]} 11. Rc1 {[%emt 0:00:18]} Qa5 {[%emt 0:00:00]} 12. Bd3 {[%emt 0:00:58]} Be6 {[%emt 0:00:00]} 13. O-O {[%emt 0:00:23]} Nd7 {[%emt 0:00:00]} 14. Qc2 {[%emt 0:01:42]} Qc7 {[%emt 0:00:00]} 15. f4 {[%emt 0:03:13]} Nb6 {[%emt 0:02:00]} 16. a4 {[%emt 0:01:08]} Ke7 {[%emt 0:00:00]} 17. a5 {[%emt 0:01:09]} Nc4 {[%emt 0:00:00]} 18. Bxc4 {[%emt 0:04:23]} dxc4 {[%emt 0:00:00]} 19. f5 {[%emt 0:00:01]} Bd7 {[%emt 0:00:00]} 20. Nxc4 {[%emt 0:00:02]} Rag8 {[%emt 0:00:00]} 21. e4 {[%emt 0:02:38]} b5 {[%emt 0:00:00]} 22. axb6 {[%emt 0:00:12]} axb6 {[%emt 0:00:00]} 23. Qb3 {[%emt 0:10:50]} b5 {[%emt 0:00:00]} 24. Qa3+ {[%emt 0:00:00]} c5 {[%emt 0:00:00]} 25. Ne3 {[%emt 0:00:00]} b4 {[%emt 0:00:00]} 26. Nd5+ {[%emt 0:00:00]} Kd8 {[%emt 0:00:00]} 27. Qa8+ {[%emt 0:00:00]} Qc8 {[%emt 0:00:00]} 28. Qa5+ {[%emt 0:00:00]} Ke8 {[%emt 0:00:00]} 29. Nxf6+ {[%emt 0:00:00]} Kf8 {[%emt 0:00:00]} 30. Rxc5 {[%emt 0:01:10]} 1-0

[Event "9th Bangabandhu Rapid Men 2021"]
[Site "Dhaka"]
[Date "2021.04.02"]
[Round "3.8"]
[White "Ahmed, Sheikh Nasir"]
[Black "Avik, Sarker"]
[Result "1-0"]
[ECO "D34"]
[WhiteElo "2193"]
[BlackElo "2030"]
[Annotator "NA"]
[PlyCount "111"]
[EventDate "2021.04.02"]
[EventType "swiss"]
[EventCountry "BAN"]
[SourceTitle "playchess.com"]
[Source "ChessBase"]
[SourceQuality "1"]
[TimeControl "1500+10"]

1. c4 {[%emt 0:00:00]} e6 {[%emt 0:00:00]} 2. g3 {[%emt 0:00:02]} Nf6 {[%emt 0:00:17]} 3. Bg2 {[%emt 0:00:03]} d5 {[%emt 0:00:02]} 4. Nf3 {[%emt 0:00:05]} Be7 {[%emt 0:00:36]} 5. O-O {[%emt 0:00:04]} O-O {[%emt 0:00:05]} 6. b3 {[%emt 0:00:02]} c5 {[%emt 0:00:12]} 7. cxd5 {[%emt 0:00:03]} exd5 {[%emt 0:00:05]} 8. d4 {[%emt 0:00:03]} Nc6 {[%emt 0:00:13]} 9. Bb2 {[%emt 0:00:11]} Ne4 {[%emt 0:00:37]} 10. Nc3 {[%emt 0:01:49]} Bf6 {[%emt 0:00:33]} 11. e3 {[%emt 0:02:36]} Bg4 {[%emt 0:00:53]} 12. Qd3 {[%emt 0:00:03]} Nb4 {[%emt 0:03:06]} 13. Qd1 {[%emt 0:04:32]} Nc6 {[%emt 0:05:47]} 14. Ne2 {[%emt 0:01:44]} Qe7 {[%emt 0:06:02]} 15. Rc1 {[%emt 0:03:28]} cxd4 {[%emt 0:09:02]} 16. Nexd4 {[%emt 0:00:32]} Ne5 {[%emt 0:00:00]} 17. Rb1 {[%emt 0:04:43]} Ng5 {[%emt 0:00:00]} 18. h4 {[%emt 0:01:21]} Nexf3+ {[%emt 0:00:00]} 19. Nxf3 {[%emt 0:00:23]} Nxf3+ {[%emt 0:00:00]} 20. Bxf3 {[%emt 0:00:03]} Bxf3 {[%emt 0:00:00]} 21. Qxf3 {[%emt 0:00:04]} Bxb2 {[%emt 0:00:00]} 22. Rxb2 {[%emt 0:00:03]} Qe4 {[%emt 0:00:00]} 23. Kg2 {[%emt 0:00:16]} Rfd8 {[%emt 0:00:14]} 24. Rd1 {[%emt 0:00:06]} Qxf3+ {[%emt 0:00:41]} 25. Kxf3 {[%emt 0:00:02]} Rd6 {[%emt 0:00:10]} 26. Rbd2 {[%emt 0:00:15]} Rad8 {[%emt 0:00:02]} 27. Rd4 {[%emt 0:00:02]} Kf8 {[%emt 0:00:27]} 28. Ke2 {[%emt 0:01:05]} Ke7 {[%emt 0:00:12]} 29. Rc1 {[%emt 0:00:01]} Rc6 {[%emt 0:00:08]} 30. Rxc6 {[%emt 0:00:09]} bxc6 {[%emt 0:00:01]} 31. Ra4 {[%emt 0:00:18]} Rd7 {[%emt 0:00:02]} 32. Kd3 {[%emt 0:00:02]} c5 {[%emt 0:00:19]} 33. Ra5 {[%emt 0:00:10]} Rc7 {[%emt 0:00:02]} 34. Ra6 {[%emt 0:00:29]} f5 {[%emt 0:00:16]} 35. Kc3 {[%emt 0:00:44]} Kd7 {[%emt 0:00:17]} 36. a3 {[%emt 0:00:41]} Kc8 {[%emt 0:00:09]} 37. Rd6 {[%emt 0:00:16]} Rd7 {[%emt 0:00:02]} 38. Rc6+ {[%emt 0:00:20]} Rc7 {[%emt 0:00:09]} 39. Re6 {[%emt 0:00:04]} g6 {[%emt 0:00:26]} 40. Re5 {[%emt 0:01:06]} Rd7 {[%emt 0:00:20]} 41. b4 {[%emt 0:00:02]} cxb4+ {[%emt 0:00:10]} 42. Kxb4 {[%emt 0:00:10]} d4 {[%emt 0:00:06]} 43. exd4 {[%emt 0:00:18]} Rxd4+ {[%emt 0:00:01]} 44. Kc5 {[%emt 0:00:06]} Rd2 {[%emt 0:00:23]} 45. Re7 {[%emt 0:00:05]} Rd7 {[%emt 0:00:10]} 46. Rxd7 {[%emt 0:00:42]} Kxd7 {[%emt 0:00:01]} 47. Kd5 {[%emt 0:00:19]} h6 {[%emt 0:00:17]} 48. Ke5 {[%emt 0:00:42]} Kc6 {[%emt 0:00:13]} 49. h5 {[%emt 0:00:52]} gxh5 {[%emt 0:00:11]} 50. Kxf5 {[%emt 0:00:05]} Kb5 {[%emt 0:00:07]} 51. Kg6 {[%emt 0:00:03]} Ka4 {[%emt 0:00:04]} 52. f4 {[%emt 0:00:04]} Kxa3 {[%emt 0:00:02]} 53. f5 {[%emt 0:00:02]} a5 {[%emt 0:00:11]} 54. f6 {[%emt 0:00:02]} a4 {[%emt 0:00:16]} 55. f7 {[%emt 0:00:03]} Kb2 {[%emt 0:00:02]} 56. f8=Q {[%emt 0:00:04]} 1-0